Cogmind - Beta 15 @@@ ROGUE MODE // 2025.05.23 @ 11:19:45 Player: obl-vn Result: Destroyed by 2D-QFJ(x) with Makeshift Spear Performance ------------- Evolutions (0) 0 Regions Visited (4) 800 Robots Destroyed (36) 180 Value Destroyed (1190) 1190 Prototype IDs (0) 0 Alien Tech Used (0) 0 Bonus (1453) 1453 TOTAL SCORE: 3623 Bonus ------- Follower Combat Kills 653 Registered with UFD 300 Met Optimus in HQ 500 Cogmind --------- Core Integrity 0/250 Matter 251/300 Energy 44/100 System Corruption 2% Temperature Hot (284) Movement Core (750) Ox14 Location -8/Scraptown Parts ------- > --- POWER (1) -------- (None) > --- PROPULSION (2) --- (None) > --- UTILITY (2) ------ High-capacity Storage Unit > --- WEAPON (2) ------- Makeshift Shrapnel Gun Makeshift Shrapnel Gun > --- INVENTORY (20) --- Scrap Suit Cryofiber Web IFF Parser Hardened Heavy Armor Plating Improved Heavy Armor Plating Ion Cannon Ion Cannon EMP Blaster Shock Bomb Launcher Mini Grenade Launcher Subdweller Shrapnel Launcher Improved Datajack CPS Tube (2) Heavy Flail DRS Beacon (Ready) Peak State ------------ > --- POWER ------------ Deuterium Engine > --- PROPULSION ------- Advanced Treads Advanced Treads > --- UTILITY ---------- High-capacity Storage Unit IFF Parser > --- WEAPON ----------- Makeshift Shrapnel Gun Assault Cannon > --- INVENTORY -------- Light Treads Medium Treads Cryofiber Web Medium Armor Plating Hardened Heavy Armor Plating Improved Heavy Armor Plating Ion Cannon Ion Cannon Makeshift Shrapnel Gun Makeshift Shrapnel Gun EMP Blaster Mini Grenade Launcher Subdweller Shrapnel Launcher Improved Datajack CPS Tube CPS Tube CPS Tube Heavy Flail [Rating: 28] Favorites ----------- Power Ion Engine Engine Ion Engine Propulsion Light Treads Treads Light Treads Utility High-capacity Storage Unit Device IFF Parser Storage High-capacity Storage Unit Protection Scrap Shield Weapon Makeshift Shrapnel Gun Energy Gun EM Pulse Gun Ballistic Gun Makeshift Shrapnel Gun Ballistic Cannon Assault Cannon Launcher Subdweller Shrapnel Launcher Slashing Weapon Makeshift Axe Special Melee Weapon Improved Datajack Build | -11 -10 -10 -8 -8 ------- Run | Yrd Mat Sub Rec Scr Slots Evolved . | . . . . . Power . | . . . . . Propulsion . | . . . . . Utility . | . . . . . Weapon . | . . . . . Parts Attached 38 | 7 1 11 8 11 Power 3 | 1 . 1 . 1 Engine 3 | 1 . 1 . 1 Core . | . . . . . Reactor . | . . . . . Propulsion 9 | 2 . 1 3 3 Treads 9 | 2 . 1 3 3 Leg . | . . . . . Wheel . | . . . . . Hover . | . . . . . Flight . | . . . . . Utility 12 | 2 . 4 3 3 Device 7 | 1 . 3 2 1 Storage 2 | 1 . . 1 . Processor . | . . . . . Hackware . | . . . . . Protection 3 | . . 1 . 2 Artifact . | . . . . . Weapon 14 | 2 1 5 2 4 Energy Gun 4 | 2 1 1 . . Energy Cannon . | . . . . . Ballistic Gun 4 | . . 1 . 3 Ballistic Cannon 2 | . . 1 1 . Launcher 2 | . . 1 . 1 Special Weapon . | . . . . . Impact Weapon . | . . . . . Slashing Weapon 1 | . . 1 . . Piercing Weapon . | . . . . . Special Melee Weapon 1 | . . . 1 . Unidentified Prototypes . | . . . . . Parts Lost 10 | . . 2 1 7 Power 1 | . . . . 1 Propulsion 2 | . . . . 2 Utility 5 | . . 2 1 2 Weapon 2 | . . . . 2 Highest Loss Streak 6 | . . 1 1 6 To Critical Strikes . | . . . . . Average Backups 13 | 4 6 5 17 18 Power . | . 1 . . . Propulsion 1 | 1 2 1 1 1 Utility 4 | . 2 1 6 6 Weapon 5 | . 1 2 7 8 Tool/Special . | . . . . . Unused Backups 35 | . . 7 5 23 Power 2 | . . 2 . . Propulsion 6 | . . 4 . 2 Utility 12 | . . . 3 9 Weapon 12 | . . 1 2 9 Tool/Special 3 | . . . . 3 Average Slot Usage (%) 93 | . 100 92 85 98 Engine 10 | . 14 14 1 12 Treads 27 | . 28 28 28 27 Device 11 | . 14 7 13 12 Storage 11 | . 14 7 13 14 Protection 2 | . . 6 . . Energy Gun 4 | . 28 10 . . Ballistic Gun 11 | . . 7 14 14 Ballistic Cannon 10 | . . 6 12 13 Slashing Weapon 1 | . . 3 . . Peak Build Rating 28 | 7 8 16 22 28 Average Rating 18 | 5 7 11 19 26 On Entrance 10 | . 7 8 15 22 Naked Turns . | . . . . . Heaviest Build 64 | 14 15 33 53 64 Greatest Support 50 | 40 40 40 44 50 Greatest Overweight (x) 1 | . . . 1 1 Average Overweight (x) . | . . . . 1 Largest Inventory Capacity 20 | 8 8 8 20 20 Average Capacity 14 | 7 8 6 19 20 Most Carried 20 | 6 8 8 20 20 Average Carried 14 | 4 6 6 17 19 Final Capacity 20 | 8 8 5 20 20 Final Carried 20 | 6 8 5 20 18 Class Distribution -------------------- 53% | Commander-Mutant 45% | Mutant Dominant Class ---------------- Mutant | -10/Materials Mutant | -10/Subcaves Commander-Mutant | -8/Recycling Commander-Mutant | -8/Scraptown Resources | -11 -10 -10 -8 -8 ----------- Run | Yrd Mat Sub Rec Scr Matter Collected 1360 | 270 . 414 411 265 Remotely . | . . . . . Salvage Created 1466 | 106 . 343 335 682 Parts 78 | 11 . 24 7 36 Haulers Intercepted . | . . . . . Recyclers Shooed 2 | 2 . . . . Parts Field Recycled . | . . . . . Retrieved Matter . | . . . . . Parts Self-Destructed 7 | . . 7 . . Prevented 1 | . . 1 . . Kills | -11 -10 -10 -8 -8 ------- Run | Yrd Mat Sub Rec Scr Combat Hostiles Destroyed 26 | . . 11 3 12 Melee 1 | . . 1 . . Guns 14 | . . 7 3 4 Cannons 6 | . . 2 . 4 AOE 4 | . . 1 . 3 Classes Destroyed 11 | 2 . 4 1 4 Worker 1 | 1 . . . . Tunneler 4 | 4 . . . . Recycler 3 | . . . 3 . Turret 2 | . . 2 . . Swarmer 2 | . . 2 . . Sentry 4 | . . 1 3 . Subdweller 8 | . . 8 . . Federalist 1 | . . . . 1 Explorer 1 | . . . . 1 Guru 1 | . . . . 1 Scrapper 9 | . . . . 9 Best Kill Streak 8 | 2 . 5 2 8 Combat Bots Only 8 | . . 3 2 8 Max Kills in Single Turn 3 | 1 . 2 1 3 Gunslinging . | . . . . . Exploded 3 | . . 1 . 3 Melee 1 | . . 1 . . Uniques/NPCs Destroyed . | . . . . . Combat | -11 -10 -10 -8 -8 -------- Run | Yrd Mat Sub Rec Scr Hostile Shots Fired 163 | . . 77 18 68 Missed 44 | . . 20 8 16 Hits 119 | . . 57 10 52 Melee 1 | . . . . 1 Projectile 118 | . . 57 10 51 Critical Strikes 3 | . . 1 1 1 Damage Taken 1933 | . . 947 149 837 Core 259 | . . 140 15 104 Absorbed by Shields . | . . . . . Core Remaining (%) 100 | 100 . . . . Volleys Fired 92 | 14 . 37 17 24 Largest 2 | 2 . 2 2 2 Hottest 90 | 90 . 80 61 61 Shots Fired 160 | 28 . 60 32 40 Gun 89 | 28 . 26 15 20 Cannon 64 | . . 28 17 19 Launcher 7 | . . 6 . 1 Special . | . . . . . Kinetic 127 | . . 56 32 39 Thermal 28 | 28 . . . . Explosive . | . . . . . Electromagnetic 5 | . . 4 . 1 Robot Hit Streak 12 | 6 . 9 12 6 Robot Miss Streak 6 | 2 . 6 3 4 Penetration Max . | . . . . . Secondary Targets 1 | . . . . 1 Max Gunslinging Chain 1 | . . . . 1 Shots Hit Robots 148 | 20 . 40 59 29 Core Hits 74 | 6 . 25 15 28 Critical Kills . | . . . . . Critical Parts Destroyed . | . . . . . Critical Strikes 2 | . . 2 . . Blast 2 | . . 2 . . Melee Attacks 54 | . . 19 35 . Impact . | . . . . . Slashing 19 | . . 19 . . Piercing . | . . . . . Sneak Attacks 33 | . . . 33 . Combat Hostiles . | . . . . . Follow-up Attacks . | . . . . . Damage Inflicted 2755 | 228 . 1248 549 730 Guns 1297 | 228 . 416 342 311 Cannons 692 | . . 258 207 227 Explosions 548 | . . 356 . 192 Melee 218 | . . 218 . . Ramming . | . . . . . Kinetic 2042 | . . 955 549 538 Thermal 374 | 228 . 29 . 117 Explosive . | . . . . . Electromagnetic 121 | . . 46 . 75 Impact . | . . . . . Slashing 218 | . . 218 . . Piercing . | . . . . . Highest Corruption 2 | . . . . 2 Average Corruption 1 | . . . . 1 Corruption Purged . | . . . . . Corruption Blocked . | . . . . . Effects 1 | . . . . 1 Data Loss (minor) 1 | . . . . 1 Overload Shots . | . . . . . Overflow Damage 19 | . . 2 17 . Projectiles 17 | . . . 17 . Explosions 1 | . . 1 . . Melee 1 | . . 1 . . Knockbacks 4 | . . 1 2 1 Impact . | . . . . . Kinetic 4 | . . 1 2 1 Secondary . | . . . . . Self-Inflicted Damage 89 | . . 46 . 43 Shots 3 | . . 1 . 2 Rammed . | . . . . . Targets Rammed . | . . . . . Kicked . | . . . . . Crushed . | . . . . . Highest Temperature 304 | 186 . 13 40 304 Average Temperature 92 | 71 . 9 31 121 Received Heat Transfer 727 | . . 240 72 415 Siege Activations . | . . . . . Martial Activations . | . . . . . Shielding Activations . | . . . . . Robots Disrupted . | . . . . . Combat Hostiles . | . . . . . Robots Corrupted . | . . . . . Combat Hostiles . | . . . . . Parts Fried . | . . . . . Impact Corruptions . | . . . . . Robots Melted 1 | . . . . 1 Combat Hostiles 1 | . . . . 1 Parts Melted 7 | 1 . . . 6 Heat Transferred 819 | 608 . 50 . 161 Parts Sabotaged . | . . . . . Parts Stolen . | . . . . . Parts Stripped . | . . . . . Power Chain Reactions 3 | . . 1 . 2 Alert | -11 -10 -10 -8 -8 ------- Run | Yrd Mat Sub Rec Scr Maximum Alert Level . | . . . . . Low Security (%) 100 | 100 100 . 100 . Level 1 . | . . . . . Level 2 . | . . . . . Level 3 . | . . . . . Level 4 . | . . . . . Level 5 . | . . . . . High Security . | . . . . . Max Security . | . . . . . Peak Influence 90 | 10 17 . 90 . Initial 37 | . . . 37 . Average 16 | 1 1 . 18 . Influence Increases 412 | 25 17 100 270 . Destroy 0b10 Robot/C 240 | . . 100 140 . Destroy 0b10 Robot/NC 65 | 25 . . 40 . Allied During Kill 38 | . . . 38 . Successful Hack 34 | . 17 . 17 . Disable Machine 15 | . . . 15 . Destroy Structure 20 | . . . 20 . Influence Decreases 412 | 25 10 28 286 63 Entered New Map 109 | . . 4 42 63 Time Decay 293 | 25 10 24 234 . Lost Part 10 | . . . 10 . Squads Dispatched . | . . . . . Investigation . | . . . . . Extermination . | . . . . . Reinforcement . | . . . . . Assault . | . . . . . Garrison . | . . . . . Intercept . | . . . . . Searches Triggered . | . . . . . Construction Impeded . | . . . . . Haulers Reinforced . | . . . . . Active Scanning Responses . | . . . . . Cargo Convoy Interrupts . | . . . . . Stealth | -11 -10 -10 -8 -8 --------- Run | Yrd Mat Sub Rec Scr Distress Signals 1 | . . . 1 . Communications Jammed . | . . . . . Distress Signals . | . . . . . Times Spotted 39 | . . 15 6 18 Peak Tracking Total 7 | . . 6 2 7 Tactical Retreats . | . . . . . Traps | -11 -10 -10 -8 -8 ------- Run | Yrd Mat Sub Rec Scr Traps Triggered 2 | . . 2 . . Indirectly . | . . . . . Trap Hack Attempts . | . . . . . Triggered . | . . . . . Disarmed . | . . . . . Reprogrammed . | . . . . . Reused . | . . . . . Traps Extracted . | . . . . . Installed . | . . . . . Triggered . | . . . . . Machines | -11 -10 -10 -8 -8 ---------- Run | Yrd Mat Sub Rec Scr Machines Disabled 8 | . . 4 1 3 Max in Single Turn 2 | . . 2 1 1 Machines Repaired . | . . . . . Machines Dismantled . | . . . . . Machines Sabotaged . | . . . . . Overloaded Fab Kills . | . . . . . Hacking | -11 -10 -10 -8 -8 --------- Run | Yrd Mat Sub Rec Scr Machines Accessed 13 | . 1 1 6 5 Terminals 5 | . 1 . 4 . Fabricators . | . . . . . Repair Stations . | . . . . . Recycling Units . | . . . . . Scanalyzers . | . . . . . Garrison Access . | . . . . . Total Hacks 78 | . 3 4 33 38 Successful 72 | . 3 4 27 38 Failed 6 | . . . 6 . Catastrophic 1 | . . . 1 . Database Lockouts . | . . . . . Manual 5 | . 4 . . 1 Terminals 12 | . 3 . 9 . Fabricators . | . . . . . Repair Stations . | . . . . . Recycling Units . | . . . . . Scanalyzers . | . . . . . Garrison Access . | . . . . . Terminal Hacks 71 | . 2 4 27 38 Record 67 | . . 4 25 38 Robot Analysis 2 | . 1 . 1 . Zone Layout 2 | . 1 . 1 . Fabricator Hacks . | . . . . . Repair Station Hacks . | . . . . . Recycling Unit Hacks . | . . . . . Scanalyzer . | . . . . . Garrison Access Hacks . | . . . . . Unauthorized Hacks 1 | . 1 . . . Terminals 1 | . 1 . . . Botnet 1 | . 1 . . . Fabricators . | . . . . . Repair Stations . | . . . . . Recycling Units . | . . . . . Scanalyzers . | . . . . . Garrison Access . | . . . . . Data Cores Recovered . | . . . . . Used . | . . . . . Hacking Detections 3 | . . . 3 . Full Trace Events 2 | . . . 2 . Feedback Events . | . . . . . Feedback Blocked . | . . . . . Robot Schematics Acquired . | . . . . . Robots Built . | . . . . . Authchips . | . . . . . Time . | . . . . . Total Robot Build Rating . | . . . . . Part Schematics Acquired . | . . . . . Parts Built . | . . . . . Authchips . | . . . . . Time . | . . . . . Total Part Build Rating . | . . . . . Parts Repaired . | . . . . . Time . | . . . . . Parts Recycled . | . . . . . Recycled Matter . | . . . . . Retrieved Matter . | . . . . . Retrieved Components . | . . . . . Parts Scanalyzed . | . . . . . Part Schematics Acquired . | . . . . . Parts Damaged . | . . . . . Bothacking | -11 -10 -10 -8 -8 ------------ Run | Yrd Mat Sub Rec Scr Used RIF Installer . | . . . . . Robots Hacked . | . . . . . Non-combat . | . . . . . Combat . | . . . . . Robot Hacks Applied . | . . . . . Relay Couplers Released . | . . . . . Fabnet Peak Effective % . | . . . . . Robots Rewired 17 | . . . 17 . Allies Hacked . | . . . . . Hacks Repelled . | . . . . . Allies | -11 -10 -10 -8 -8 -------- Run | Yrd Mat Sub Rec Scr Total Allies 17 | . . . 17 . Largest Group 17 | . . . 17 17 Highest-Rated Group 249 | . . . 249 249 Highest-Rated Ally 34 | . . . 34 34 Total Orders 10 | . . . . 10 STAY 2 | . . . . 2 ROAM 2 | . . . . 2 FOLLOW 6 | . . . . 6 Ally Attacks 86 | . . . 16 70 Total Damage 1758 | . . . 503 1255 Kills 22 | . . . 8 14 Allies Corrupted . | . . . . . Allies Melted 7 | . . . . 7 Intel | -11 -10 -10 -8 -8 ------- Run | Yrd Mat Sub Rec Scr Active Infowar (turns) 6114 | 55 158 1440 1455 3006 IFF 2695 | . . . . 2695 Terrain 36 | . . 36 . . Traps 1766 | . . . 1455 311 Seismic 1617 | 55 158 1404 . . Robot Analysis Total 2 | . 1 . 1 . Derelict Logs Recovered 3 | . . . . 3 Drone Launches . | . . . . . Drone Recoveries . | . . . . . Exploration | -11 -10 -10 -8 -8 ------------- Run | Yrd Mat Sub Rec Scr Turns Passed 8248 | 177 158 2812 1848 3253 Spaces Moved 3842 | 80 81 1564 738 1379 Core 10 | 10 . . . . Treads 3832 | 70 81 1564 738 1379 Legs . | . . . . . Wheels . | . . . . . Hover . | . . . . . Flight . | . . . . . Fastest Speed 50 | 50 160 160 160 192 Average Speed 196 | 146 160 160 228 224 Slowest Speed 240 | 160 160 160 240 232 Overloaded Moves . | . . . . . Propulsion Burnouts . | . . . . . Robots Hopped . | . . . . . Potential Cave-ins . | . . . . . Cave-ins Triggered . | . . . . . Exploration Rate (%) 55 | 6 10 77 99 83 Regions Visited 4 Branch Regions 3 Pre-discovered Areas 1 | . . . . 1 Known Exits Taken . | . . . . . Unknown Exits Taken 4 | 1 1 1 1 . Scrap Searched 14 | . . 9 . 5 Spaces Dug 7 | . . 6 1 . Terrain Destroyed 92 | . . 83 2 7 Melee . | . . . . . Projectile 12 | . . 7 2 3 AOE 80 | . . 76 . 4 Terrain Rammed . | . . . . . Walls Destroyed . | . . . . . Machines Disabled . | . . . . . Actions | -11 -10 -10 -8 -8 --------- Run | Yrd Mat Sub Rec Scr Total 4384 | 112 109 1798 866 1499 Wait 219 | . 26 111 33 49 Move 3838 | 79 80 1563 737 1379 Hop . | . . . . . Pick Up 66 | 12 2 18 20 14 Fast Attach 10 | 1 . 2 4 3 Attach 10 | 6 . 1 . 3 Detach 2 | . . 1 1 . Swap 31 | . 1 14 10 6 Drop 53 | . . 23 9 21 Fire 92 | 14 . 37 17 24 Melee 54 | . . 19 35 . Ram . | . . . . . Kick . | . . . . . Crush . | . . . . . Escape Stasis . | . . . . . Rewire . | . . . . . Trap . | . . . . . Miscellaneous 9 | . . 9 . . Route ------- -11/Scrapyard -10/Materials -10/Subcaves (discovered 3 exits: [*Mat x2] / *Rec) -8/Recycling (discovered 2 exits: *Fac / *Scr) -8/Scraptown (discovered 2 exits: *Fac x2) History --------- Turn | Location | Event 15 | -11/Scrapyard | Discovered new exit (range 15) 178 | -11/Scrapyard | Entered Materials 318 | -10/Materials | Discovered new exit (range 10) 325 | -10/Materials | Build established: Mutant 336 | -10/Materials | Entered Subcaves 465 | -10/Subcaves | A swath of the cavern ceiling suddenly collapsed 1236 | -10/Subcaves | A swath of the cavern ceiling suddenly collapsed 1739 | -10/Subcaves | Discovered new exit (range 16) 1800 | -10/Subcaves | Discovered new exit (range 9) 2003 | -10/Subcaves | Shifting Twisted Machinery released Battle Rifle 2102 | -10/Subcaves | Visited Clippyterm 2107 | -10/Subcaves | Learned 40 Factory zone layouts 2259 | -10/Subcaves | Shifting Twisted Machinery released Sub. Laser 3114 | -10/Subcaves | Discovered new exit (range 10) 3115 | -10/Subcaves | Shifting Twisted Machinery released Scrap Shield 3115 | -10/Subcaves | Core integrity fell below 50% 3148 | -10/Subcaves | Entered Recycling 4068 | -8/Recycling | Discovered new exit (range 8) 4088 | -8/Recycling | Build established: Commander-Mutant 4890 | -8/Recycling | Scanned before Scraplab entrance 4924 | -8/Recycling | Entered Scraplab 4983 | -8/Recycling | Discovered new exit (range 2) 4996 | -8/Recycling | Entered Scraptown 4996 | -8/Scraptown | Accompanied by 17 allies 5445 | -8/Scraptown | Visited SPCMW 5517 | -8/Scraptown | Visited Fellowship of the Rings 5877 | -8/Scraptown | Discovered new exit (range 7) 5936 | -8/Scraptown | Scanned Subdweller tech in exchange for log data 5940 | -8/Scraptown | Learned location of Warlord (-5) 5943 | -8/Scraptown | Learned 12 Research zone layouts 6226 | -8/Scraptown | Visited TADAMA 6325 | -8/Scraptown | Visited Supply Room 6403 | -8/Scraptown | Visited UFD Registry 6403 | -8/Scraptown | Registered with UFD as "Gearhacker" 6421 | -8/Scraptown | Visited Spacefarers 6493 | -8/Scraptown | Visited IN-MT5's Study 6863 | -8/Scraptown | Visited Assassins FH 7212 | -8/Scraptown | Visited Observation Area 7302 | -8/Scraptown | Visited Supply Room 7349 | -8/Scraptown | Visited Abandonware Association 7423 | -8/Scraptown | Learned abandonware demo "SHUTEYE.EXE" 7423 | -8/Scraptown | Learned abandonware demo "MELTYB.EXE" 7783 | -8/Scraptown | Visited Derelict Rescue Squad 7798 | -8/Scraptown | Found DRS Beacon 7894 | -8/Scraptown | Met Optimus 7894 | -8/Scraptown | Accepted into 0bPrime 7977 | -8/Scraptown | Received an X-ray algorithm 7999 | -8/Scraptown | Ran an X-ray algorithm 8000 | -8/Scraptown | Civil war broke out across Scraptown 8069 | -8/Scraptown | Lost 9 allies 8075 | -8/Scraptown | Identified exit to Factory 8135 | -8/Scraptown | Core integrity fell below 20% 8161 | -8/Scraptown | Found Scrap Suit 8176 | -8/Scraptown | Visited Junk Repository 8237 | -8/Scraptown | Optimus destroyed in the chaos of civil war 8249 | -8/Scraptown | Destroyed by 2D-QFJ(x) with Makeshift Spear Last Messages --------------- 08232_ Deuterium Engine destroyed. 08234_ Acquired 10 matter. 08234_ Chain reaction triggered in Corrupted Ion Engine. 08234_ Chain reaction triggered in Corrupted Lgt. Ion Engine. 08234_ ID-AUM(j) destroyed. 08234_ VZ-FOH(j) destroyed. 08234_ ZV-UQS(j) destroyed. 08237_ ANNOUNCEMENT: The traitor Optimus has been dealt with. Put down any remaining collaborators. 08237_ Mak. Shrapnel Gun destroyed. 08239_ 3P-17Z(j) heat damages core (-6). 08239_ Ovr. Titanium Leg melted. 08241_ Med. Treads destroyed. 08244_ Aluminum Leg melted. 08244_ QF-DJK(g) destroyed. 08244_ Switching to secondary target: HP-WD9(g). 08245_ Hrd. Medium Armor Plating destroyed. Map ----- +----------------------------------------------------+ | ?????????????????????????????????????????????????? | | ?????????????????????????????????????????????????? | | ?????????????????????????????????????????????????? | | ?????????????????????????????????????????????????? | | ?????????????????????????????????????????????????? | | ?????????????????????????????????????????????????? | | ?????????????????????????????????????????????????? | | ?????????????????????????????????????????????????? | | ??????????????????????????????